Workbook

Sheet الفاتورة
A1: المقر | G1: خاص | M1: العربى | Q1: يونفرسال
A2: العنوان | L2: رقم الفاتورة | M2: تاريخ الفاتوره | N2: مبلغ الفاتورة | P2: رقم الفاتورة | Q2: تاريخ الفاتوره | R2: مبلغ الفاتورة
A3: البريد الاكترونى | F3: الفاتورة # | H3: التاريخ | J3: كل التقدير والاحترام الى منتدى اوفيسنا الذى لم يبخل علينا بالمساعدة نرجو عملكود لاإيجاد قيم كل شركة من رقم فاتورة وتاريخها ومبلغها في الشيت كررت الفاتورة اربع مرات لكل شركة مرتان من التعامل | L3: 103 | M3: 2020-12-19 | N3: 307.8 | P3: 101 | Q3: 18/12/202 | R3: 22.8
A4: تليفــــــــــون : | F4: 103 | H4: 2020-12-19 | L4: 100 | M4: 2020-12-18 | N4: 22.8 | P4: 102 | Q4: 2020-12-19 | R4: 273.6
A5: سجل تجاري : | H5: Email: | L5: 103 | M5: 2020-12-19 | N5: 307.8
A6: ملف ضــريبي : | E6: mobile: | L6: اجمالي جميع الفواتير | N6: 638.4
A7: القيمة المضافة : | E7: Date:……10…/12/2018…………………..
A8: فاتورة إلى | F8: معرّف العميل | H8: الشروط
A9: اسم العميل / | B9: العربى | J9: وهذه نماذج للعمل متنمنين لكم دوام الصحة والعافية
A10: اسم الشركة /
A11: عنوانة /
A12: تليفون /
A14: البيان | F14: الكمية | G14: سعر الوحدة | H14: المبلغ
A15: ثلاجة 14 قدم | F15: 2 | G15: 120 | H15: =IF(F15="",ROUND(1*G15,2),ROUND(F15*G15,2)) -> 240
A16: فريزر | F16: 5 | G16: 6 | H16: =IF(F16="",ROUND(1*G16,2),ROUND(F16*G16,2)) -> 30
H17: 0
H18: 0
H19: 0
H20: 0
H21: 0
H22: 0
H23: 0
H24: =IF(F24="",ROUND(1*G24,2),ROUND(F24*G24,2)) -> 0
H25: 0
H26: 0
H27: 0
H28: 0
H29: 0
A30: شكراً لتعاملك معنا! | G30: الإجمالي الفرعي | H30: =SUM(H15:H29) -> 270
A31: =NoToTxt(H33,"جنيه"," قرش") -> ثلاثمائة وسبعة جنيه وثمانون قرش فقط لا غير | G31: معدل الضريبة | H31: 0.14
G32: الخصم | H32: =H30*H31 -> 37.8
G33: الإجمالي | H33: =H30+H32 -> 307.8
A38: المقر | G38: خاص
A39: العنوان
A40: البريد الاكترونى | F40: الفاتورة # | H40: التاريخ
A41: تليفــــــــــون : | F41: 100 | H41: 2020-12-18
A42: سجل تجاري : | H42: Email:
A43: ملف ضــريبي : | E43: mobile:
A44: القيمة المضافة : | E44: Date:……10…/12/2018…………………..
A45: فاتورة إلى | F45: معرّف العميل | H45: الشروط
A46: اسم العميل / | B46: العربى
A47: اسم الشركة /
A48: عنوانة /
A49: تليفون /
A51: البيان | F51: الكمية | G51: سعر الوحدة | H51: المبلغ
A52: غسالة توشيبا | F52: 5 | G52: 4 | H52: =IF(F52="",ROUND(1*G52,2),ROUND(F52*G52,2)) -> 20
H53: =IF(F53="",ROUND(1*G53,2),ROUND(F53*G53,2)) -> 0
H54: 0
H55: 0
H56: 0
H57: 0
H58: 0
H59: 0
H60: 0
H61: 0
H62: 0
H63: 0
H64: 0
H65: 0
H66: 0
A67: شكراً لتعاملك معنا! | G67: الإجمالي الفرعي | H67: =SUM(H52:H66) -> 20
A68: =NoToTxt(H70,"جنيه"," قرش") -> اثنان وعشرون جنيه وثمانون قرش فقط لا غير | G68: معدل الضريبة | H68: 0.14
G69: الخصم | H69: =H67*H68 -> 2.8
G70: الإجمالي | H70: =H67+H69 -> 22.8
A75: المقر | G75: خاص
A76: العنوان
A77: البريد الاكترونى | F77: الفاتورة # | H77: التاريخ
A78: تليفــــــــــون : | F78: 101 | H78: 2020-12-18
A79: سجل تجاري : | H79: Email:
A80: ملف ضــريبي : | E80: mobile:
A81: القيمة المضافة : | E81: Date:……10…/12/2018…………………..
A82: فاتورة إلى | F82: معرّف العميل | H82: الشروط
A83: اسم العميل / | B83: يونفرسال
A84: اسم الشركة /
A85: عنوانة /
A86: تليفون /
A88: البيان | F88: الكمية | G88: سعر الوحدة | H88: المبلغ
A89: غسالة نص ك | F89: 9 | G89: 7 | H89: =IF(F89="",ROUND(1*G89,2),ROUND(F89*G89,2)) -> 63
H90: =IF(F90="",ROUND(1*G90,2),ROUND(F90*G90,2)) -> 0
H91: 0
H92: 0
H93: 0
H94: 0
H95: 0
H96: 0
H97: 0
H98: 0
H99: 0
H100: 0
H101: 0
H102: 0
H103: 0
A104: شكراً لتعاملك معنا! | G104: الإجمالي الفرعي | H104: =SUM(H89:H103) -> 63
A105: =NoToTxt(H107,"جنيه"," قرش") -> واحد وسبعون جنيه واثنان وثمانون قرش فقط لا غير | G105: معدل الضريبة | H105: 0.14
G106: الخصم | H106: =H104*H105 -> 8.82
G107: الإجمالي | H107: =H104+H106 -> 71.82
A112: المقر | G112: خاص
A113: العنوان
A114: البريد الاكترونى | F114: الفاتورة # | H114: التاريخ
A115: تليفــــــــــون : | F115: 102 | H115: 2020-12-19
A116: سجل تجاري : | H116: Email:
A117: ملف ضــريبي : | E117: mobile:
A118: القيمة المضافة : | E118: Date:……10…/12/2018…………………..
A119: فاتورة إلى | F119: معرّف العميل | H119: الشروط
A120: اسم العميل / | B120: يونفرسال
A121: اسم الشركة /
A122: عنوانة /
A123: تليفون /
A125: البيان | F125: الكمية | G125: سعر الوحدة | H125: المبلغ
A126: ثلاجة 14 قدم | F126: 2 | G126: 120 | H126: =IF(F126="",ROUND(1*G126,2),ROUND(F126*G126,2)) -> 240
H127: =IF(F127="",ROUND(1*G127,2),ROUND(F127*G127,2)) -> 0
H128: 0
H129: 0
H130: 0
H131: 0
H132: 0
H133: 0
H134: 0
H135: 0
H136: 0
H137: 0
H138: 0
H139: 0
H140: 0
A141: شكراً لتعاملك معنا! | G141: الإجمالي الفرعي | H141: =SUM(H126:H140) -> 240
A142: =NoToTxt(H144,"جنيه"," قرش") -> مائتان وثلاثة وسبعون جنيه وستون قرش فقط لا غير | G142: معدل الضريبة | H142: 0.14
G143: الخصم | H143: =H141*H142 -> 33.6
G144: الإجمالي | H144: =H141+H143 -> 273.6
A149: المقر | G149: خاص
A150: العنوان
A151: البريد الاكترونى | F151: الفاتورة # | H151: التاريخ
A152: تليفــــــــــون : | F152: 103 | H152: 2020-12-19
A153: سجل تجاري : | H153: Email:
A154: ملف ضــريبي : | E154: mobile:
A155: القيمة المضافة : | E155: Date:……10…/12/2018…………………..
A156: فاتورة إلى | F156: معرّف العميل | H156: الشروط
A157: اسم العميل / | B157: العربى
A158: اسم الشركة /
A159: عنوانة /
A160: تليفون /
A162: البيان | F162: الكمية | G162: سعر الوحدة | H162: المبلغ
A163: ثلاجة 14 قدم | F163: 2 | G163: 120 | H163: =IF(F163="",ROUND(1*G163,2),ROUND(F163*G163,2)) -> 240
A164: فريزر | F164: 5 | G164: 6 | H164: =IF(F164="",ROUND(1*G164,2),ROUND(F164*G164,2)) -> 30
H165: 0
H166: 0
H167: 0
H168: 0
H169: 0
H170: 0
H171: 0
H172: 0
H173: 0
H174: 0
H175: 0
H176: 0
H177: 0
A178: شكراً لتعاملك معنا! | G178: الإجمالي الفرعي | H178: =SUM(H163:H177) -> 270
A179: =NoToTxt(H181,"جنيه"," قرش") -> ثلاثمائة وسبعة جنيه وثمانون قرش فقط لا غير | G179: معدل الضريبة | H179: 0.14
G180: الخصم | H180: =H178*H179 -> 37.8
G181: الإجمالي | H181: =H178+H180 -> 307.8
